bitfinex/quotes_SOLUSD_20220128
["timestamp","ask_amount","ask_price","bid_price","bid_amount"]
[1643403106211,0.25,92.729,92.668,1.46155998]
[1643403106416,16.194,92.72,92.668,1.46155998]
[1643403106612,16.194,92.72,92.671,1.46155998]
[1643403106814,0.25,92.719,92.671,1.46155998]
[1643403107029,0.25,92.719,92.67,0.00959574]
[1643403107217,0.25,92.719,92.652,0.00959574]
[1643403107218,44.41873645,92.719,92.652,0.00959574]
[1643403107613,44.41873645,92.719,92.6,17.41314668]
[1643403107614,44.41873645,92.719,92.65,0.00959574]
[1643403107820,29.175,92.71,92.65,0.00959574]
[1643403108013,29.175,92.71,92.642,0.00959574]
[1643403108223,29.175,92.71,92.614,2.9096155]
[1643403108420,0.25,92.709,92.614,2.9096155]
[1643403108818,0.25,92.709,92.607,2.9096155]
[1643403109024,45.07906161,92.689,92.607,2.9096155]
[1643403109220,16.199,92.69,92.607,2.9096155]
[1643403109421,0.25,92.688,92.604,2.9096155]
[1643403109620,0.25,92.688,92.608,4.27309852]
[1643403110121,43.61428837,92.679,92.599,2.9096155]
[1643403110326,0.25,92.678,92.6,0.25]
[1643403110523,0.25,92.678,92.601,4.3048005]
[1643403111128,0.25,92.678,92.593,4.3048005]
[1643403111328,3.20669142,92.678,92.592,6.0]
[1643403111537,16.203,92.67,92.574,2.9096155]
[1643403111728,12.98,92.66,92.573,2.9096155]
[1643403112029,54.034,92.65,92.569,2.9096155]
[1643403112227,54.034,92.65,92.562,2.9096155]
[1643403112430,12.98,92.66,92.561,2.9096155]
[1643403112630,16.204,92.66,92.57,2.95669142]
[1643403112835,16.204,92.66,92.575,2.9096155]
[1643403113030,66.981,92.7,92.575,2.9096155]
[1643403113229,12.98,92.7,92.585,6.0]
[1643403113533,12.98,92.7,92.586,7.254262]
[1643403113729,12.98,92.7,92.59,2.9096155]
[1643403113929,46.6096731,92.713,92.596,6.0]
[1643403114134,16.197,92.7,92.6,16.197]
[1643403114330,16.197,92.7,92.601,4.54757058]
[1643403114532,16.197,92.7,92.601,0.25]
[1643403114735,0.25,92.699,92.601,0.25]
[1643403114931,45.94225867,92.699,92.602,4.20772904]
[1643403115136,16.199,92.69,92.587,2.9096155]
[1643403115335,29.179,92.69,92.587,2.9096155]
[1643403115533,0.25,92.689,92.573,2.9096155]
[1643403115742,3.20669142,92.689,92.578,4.21034548]
[1643403115932,2.95669142,92.688,92.578,4.21034548]
[1643403116133,1.95669142,92.688,92.578,4.21034548]
[1643403116331,0.25,92.687,92.579,0.25]
[1643403116531,0.25,92.687,92.58,4.21034548]
[1643403116935,16.201,92.68,92.581,0.25]
[1643403117131,36.90480955,92.679,92.582,4.21034548]
[1643403117331,37.15480955,92.679,92.579,24.826]
[1643403118132,39.28994802,92.659,92.579,24.826]
[1643403118358,0.25,92.658,92.555,2.9096155]
[1643403118560,0.25,92.658,92.555,4.20803789]
[1643403118858,0.25,92.658,92.543,2.9096155]
[1643403119363,16.208,92.64,92.542,2.9096155]
[1643403119559,16.208,92.64,92.555,4.20906646]
[1643403119763,0.25,92.639,92.555,4.20906646]
[1643403119964,0.25,92.639,92.546,2.9096155]
[1643403120160,0.25,92.639,92.543,4.20906646]
[1643403120161,0.25,92.639,92.547,3.1596155]
[1643403120359,0.25,92.639,92.549,2.9096155]
[1643403120560,0.25,92.639,92.548,4.20906646]
[1643403120759,0.25,92.639,92.549,0.25]
[1643403121659,0.25,92.639,92.55,20.41406646]
[1643403121863,0.25,92.647,92.551,4.45906646]
[1643403122161,0.25,92.647,92.552,4.20906646]
[1643403122359,0.25,92.679,92.555,2.9096155]
[1643403122559,0.25,92.679,92.553,25.0048]
[1643403122560,0.25,92.679,92.556,2.9096155]
[1643403122759,0.25,92.679,92.557,0.25]
[1643403122960,16.204,92.66,92.557,3.1596155]
[1643403123362,47.2095,92.704,92.57,12.98]
[1643403123363,54.0,92.7,92.57,12.98]
[1643403123563,54.0,92.7,92.58,6.0]
[1643403123763,54.0,92.7,92.581,0.25]
[1643403123964,42.45185796,92.699,92.582,4.20906646]
[1643403124368,42.45185796,92.699,92.583,26.25329142]
[1643403124564,42.45185796,92.699,92.584,4.20663621]
[1643403124763,42.45185796,92.699,92.585,0.25]
[1643403125066,16.2,92.68,92.586,4.20663621]
[1643403125263,0.25,92.679,92.593,6.0]
[1643403125464,0.25,92.679,92.591,107.9]
[1643403125663,0.25,92.679,92.591,108.15]
[1643403125865,0.25,92.679,92.591,107.9]
[1643403126670,53.989,92.72,92.592,4.21271027]
[1643403126873,53.989,92.72,92.602,107.9]
[1643403127072,0.30828606,92.718,92.604,6.0]
[1643403127369,13.98453788,92.719,92.568,2.9096155]
[1643403127567,28.7125291,92.717,92.578,6.0]
[1643403127769,75.40113609,92.717,92.562,2.9096155]
[1643403127975,50.90073609,92.716,92.575,6.0]
[1643403128168,50.90073609,92.716,92.576,107.9]
[1643403128369,51.15073609,92.715,92.576,107.9]
[1643403128570,51.15073609,92.715,92.586,6.0]
[1643403128772,25.51889142,92.714,92.587,0.25]
[1643403128970,16.197,92.7,92.587,0.25]
[1643403129171,16.197,92.7,92.587,6.25]
[1643403129379,0.25,92.699,92.59,12.98]
[1643403129579,0.25,92.699,92.591,4.07007633]
[1643403129773,0.25,92.699,92.592,22.8324]
[1643403129974,53.999,92.71,92.593,111.97007633]
[1643403130181,53.999,92.71,92.594,4.07007633]
[1643403130575,40.24410744,92.709,92.594,4.07007633]
[1643403130879,2.95669142,92.709,92.6,16.196]
[1643403131079,53.999,92.71,92.6,29.176]
[1643403131274,0.25,92.709,92.601,4.3201249]
[1643403131477,0.25,92.709,92.601,19.43681632]
[1643403131676,0.25,92.709,92.602,7.02681632]
[1643403131878,0.25,92.709,92.603,0.25]
[1643403132176,0.25,92.709,92.603,3.20669142]
[1643403132375,0.25,92.709,92.604,30.89281308]
[1643403132675,0.25,92.709,92.605,114.93281308]
[1643403132875,0.25,92.709,92.606,4.07612166]
[1643403133073,16.196,92.7,92.607,107.9]
[1643403133274,0.25,92.699,92.608,4.07612166]
[1643403133474,0.25,92.699,92.607,107.9]
[1643403133677,0.25,92.699,92.608,4.07798946]
[1643403134077,16.198,92.69,92.609,107.9]
[1643403134282,0.25,92.689,92.604,23.86]
[1643403134581,3.20669142,92.689,92.58,15.8896155]
[1643403134779,2.95669142,92.688,92.571,2.9096155]
[1643403134983,40.43183567,92.687,92.576,3.08024938]
[1643403135182,40.68183567,92.687,92.576,3.08024938]
[1643403135384,2.95669142,92.686,92.576,3.08024938]
[1643403135584,16.207,92.66,92.582,2.9096155]
[1643403135786,16.207,92.66,92.583,2.9096155]
[1643403135986,0.25,92.659,92.581,2.9096155]
[1643403136194,0.25,92.659,92.575,26.1325155]
[1643403136395,3.20669142,92.659,92.575,26.1325155]
[1643403136590,3.20669142,92.659,92.575,23.2229]
[1643403137016,3.20669142,92.659,92.57,26.9738155]
[1643403137222,0.25,92.659,92.57,24.0642]
[1643403137718,0.25,92.668,92.57,24.0642]
[1643403138121,16.207,92.64,92.57,24.0642]
[1643403138420,0.25,92.639,92.57,24.0642]
[1643403139324,16.209,92.63,92.57,24.0642]
[1643403139824,0.25,92.629,92.57,24.0642]
[1643403140624,0.25,92.629,92.571,0.25]
[1643403140822,0.25,92.629,92.57,24.0642]
[1643403141223,49.53459451,92.629,92.554,2.9096155]
[1643403141425,49.53459451,92.629,92.541,23.9763]
[1643403141426,16.211,92.62,92.541,23.9763]
[1643403141628,16.211,92.62,92.535,27.5085155]
[1643403141827,0.25,92.619,92.533,2.9096155]
[1643403142427,0.25,92.619,92.534,2.9096155]
[1643403142626,16.215,92.6,92.534,2.9096155]
[1643403143026,16.215,92.6,92.535,0.25]
[1643403143226,16.215,92.6,92.538,2.9096155]
[1643403143427,16.215,92.6,92.537,2.9096155]
[1643403143630,16.215,92.6,92.535,0.25]
[1643403144127,16.215,92.6,92.533,2.9096155]
[1643403144334,16.217,92.58,92.526,2.9096155]
[1643403144526,16.217,92.58,92.515,22.6929]
[1643403144737,45.5418218,92.579,92.515,22.6929]
[1643403144938,45.5418218,92.579,92.509,2.9096155]
[1643403145132,0.25,92.579,92.51,2.9096155]
[1643403145334,0.25,92.579,92.494,113.7]
[1643403145335,0.25,92.579,92.509,2.9096155]
[1643403145535,0.25,92.579,92.512,2.9096155]
[1643403145936,54.068,92.59,92.513,2.9096155]
[1643403145937,0.25,92.589,92.513,2.9096155]
[1643403146336,0.25,92.589,92.515,2.9096155]
[1643403146535,16.218,92.58,92.515,2.9096155]
[1643403146738,16.218,92.58,92.516,0.25]
[1643403146936,0.25,92.579,92.51,2.9096155]
[1643403147144,0.25,92.579,92.502,2.9096155]
[1643403147542,0.25,92.579,92.499,2.9096155]
[1643403147738,16.22,92.57,92.5,2.9096155]
[1643403147939,58.49410367,92.57,92.498,2.9096155]
[1643403148137,0.25,92.569,92.497,22.7286]
[1643403149345,16.221,92.56,92.497,22.7286]
[1643403149751,0.25,92.559,92.497,22.7286]
[1643403150346,0.25,92.559,92.498,107.9]
[1643403150646,0.25,92.559,92.497,22.7286]
[1643403150846,0.25,92.559,92.498,0.25]
[1643403151047,16.218,92.58,92.498,0.25]
[1643403151248,16.218,92.58,92.499,2.95669142]
[1643403151449,54.052,92.61,92.5,0.25]
[1643403151649,4.50054147,92.727,92.5,0.25]
[1643403151650,12.98,92.64,92.503,2.9096155]
[1643403151849,23.2499,92.639,92.512,2.9096155]
[1643403152053,23.2499,92.639,92.522,6.0]
[1643403152251,23.2499,92.639,92.523,0.25]
[1643403152450,35.02418615,92.638,92.523,46.4935]
[1643403152954,16.211,92.62,92.523,46.4935]
[1643403153750,23.2499,92.639,92.523,46.4935]
[1643403153751,2.99931021,92.733,92.524,2.95669142]
[1643403153954,12.98,92.68,92.533,8.9096155]
[1643403154154,12.98,92.68,92.54,12.98]
[1643403154354,12.98,92.68,92.544,107.9]
[1643403154555,64.87968638,92.679,92.554,6.0]
[1643403154851,64.87968638,92.679,92.555,25.2336]
[1643403155054,24.8411,92.696,92.56,12.98]
[1643403155256,12.98,92.72,92.561,24.4668]
[1643403155452,47.2575,92.735,92.57,6.0]
[1643403155653,66.48901557,92.735,92.58,12.98]
[1643403155875,67.67261909,92.734,92.581,132.1786]
[1643403156075,67.67261909,92.734,92.591,6.0]
[1643403156275,12.98,92.73,92.592,23.2148]
[1643403156674,22.43820699,92.729,92.602,6.0]
[1643403156877,22.43820699,92.729,92.603,0.25]
[1643403157075,16.201,92.69,92.603,0.25]
[1643403157274,36.03647672,92.689,92.603,0.25]
[1643403157677,36.03647672,92.689,92.603,6.25]
[1643403158278,16.2,92.68,92.593,23.8901]
[1643403158479,16.2,92.68,92.554,2.9096155]
[1643403158681,0.25,92.679,92.57,12.98]
[1643403158879,0.25,92.679,92.571,23.6971]
[1643403159081,0.25,92.679,92.581,6.0]
[1643403159279,0.25,92.679,92.582,0.25]
[1643403159680,16.203,92.67,92.582,0.25]
[1643403159879,0.25,92.669,92.583,2.95669142]
[1643403160080,0.25,92.669,92.593,6.0]
[1643403160282,0.25,92.669,92.594,108.15]
[1643403160483,10.65,92.687,92.594,117.10669142]
[1643403160680,10.65,92.687,92.595,2.95669142]
[1643403160879,5.42388981,92.687,92.611,107.9]
[1643403161086,5.42388981,92.687,92.621,113.9]
[1643403161281,5.42388981,92.687,92.622,0.25]
[1643403161485,2.99931021,92.772,92.622,3.20669142]
[1643403161682,39.39028023,92.75,92.624,107.9]
[1643403161879,37.81038405,92.736,92.625,0.25]
[1643403162081,46.76838888,92.719,92.623,49.4872]
[1643403162692,2.95669142,92.718,92.623,49.4872]
[1643403163283,16.197,92.7,92.59,12.98]
[1643403163488,43.93227803,92.699,92.59,12.98]
[1643403163701,47.13896945,92.699,92.57,12.98]
[1643403163883,24.9192,92.698,92.578,6.0]
[1643403164086,27.87589142,92.698,92.568,47.9726]
[1643403164386,3.20669142,92.697,92.568,47.9726]
[1643403164787,2.95669142,92.696,92.568,47.9726]
[1643403164985,16.204,92.67,92.568,47.9726]
[1643403165186,16.204,92.67,92.569,0.25]
[1643403165385,0.25,92.669,92.569,0.25]
[1643403165588,0.25,92.669,92.571,107.9]
[1643403165785,0.25,92.669,92.572,0.25]
[1643403166086,16.204,92.66,92.572,0.25]
[1643403166288,0.25,92.659,92.572,3.20669142]
[1643403166688,0.25,92.659,92.572,0.25]
[1643403166889,40.47641516,92.659,92.572,0.25]
[1643403167085,40.47641516,92.659,92.58,6.0]
[1643403167288,16.206,92.65,92.58,6.0]
[1643403167686,0.25,92.649,92.571,0.25]
[1643403167886,0.25,92.649,92.569,0.25]
[1643403168091,0.25,92.649,92.54,12.98]
[1643403168289,16.207,92.64,92.525,2.9096155]
[1643403168487,36.20599694,92.639,92.549,6.0]
[1643403168689,36.45599694,92.639,92.549,6.0]
[1643403169386,36.45599694,92.639,92.52,2.9096155]
[1643403169687,36.45599694,92.639,92.54,0.25]
[1643403170088,37.65608194,92.619,92.518,2.9096155]
[1643403170287,0.25,92.618,92.519,2.9096155]
[1643403170501,0.25,92.618,92.51,45.1373]
[1643403170695,0.25,92.618,92.52,6.0]
[1643403170889,0.25,92.618,92.52,18.98]
[1643403171186,0.25,92.618,92.526,6.0]
[1643403171388,0.25,92.618,92.52,18.98]
[1643403171590,23.1946,92.648,92.522,6.0]
[1643403171787,43.28315157,92.647,92.523,0.25]
[1643403171988,16.213,92.61,92.523,0.25]
[1643403172189,46.20522252,92.609,92.523,0.25]
[1643403172488,0.25,92.608,92.528,113.7]
[1643403172889,0.25,92.608,92.529,0.25]
[1643403173691,16.214,92.6,92.522,6.0]
[1643403173891,0.25,92.599,92.522,6.0]
[1643403174190,0.25,92.599,92.51,35.5103]
[1643403175291,0.25,92.608,92.51,35.5103]
[1643403175496,23.0701,92.636,92.51,35.5103]
[1643403175497,16.213,92.61,92.511,24.9758]
[1643403175896,16.213,92.61,92.512,2.95669142]
[1643403176291,16.213,92.61,92.511,24.9758]
[1643403176292,16.213,92.61,92.513,0.25]
[1643403176492,45.2635846,92.609,92.513,0.25]
[1643403176694,23.0701,92.636,92.513,0.25]
[1643403176891,0.25,92.635,92.513,0.25]
[1643403177093,54.051,92.62,92.514,2.95669142]
[1643403177292,0.25,92.619,92.521,6.0]
[1643403177893,0.25,92.619,92.514,2.95669142]
[1643403178299,0.25,92.619,92.511,24.7258]
[1643403178806,0.25,92.619,92.512,0.25]
[1643403178996,16.213,92.61,92.512,108.15]
[1643403179295,0.25,92.609,92.512,108.15]
[1643403179894,0.25,92.609,92.512,0.25]
[1643403180698,0.25,92.609,92.513,2.95669142]
[1643403180895,0.25,92.619,92.514,0.25]
[1643403181100,16.215,92.6,92.514,0.25]
[1643403181297,54.035,92.64,92.515,2.95669142]
[1643403181496,54.035,92.64,92.525,6.0]
[1643403181696,91.93565126,92.64,92.53,120.88]
[1643403181898,91.93565126,92.64,92.531,0.25]
[1643403182105,91.93565126,92.64,92.54,6.0]
[1643403182299,91.93565126,92.64,92.541,0.25]
[1643403182501,91.93565126,92.64,92.531,24.6634]
[1643403182904,36.65302709,92.619,92.531,24.6634]
[1643403184004,0.25,92.618,92.531,24.6634]
[1643403184402,0.25,92.618,92.531,0.25]
[1643403184607,16.214,92.6,92.536,6.0]
[1643403184803,0.25,92.599,92.536,6.0]
[1643403185204,0.25,92.599,92.52,6.0]
[1643403185804,0.25,92.601,92.52,6.0]
[1643403186212,16.216,92.59,92.52,6.0]
[1643403186408,16.216,92.59,92.51,22.5303]
[1643403186706,0.25,92.589,92.511,0.25]
[1643403187107,0.25,92.589,92.501,23.5701]
[1643403187311,16.218,92.58,92.501,23.5701]
[1643403187709,0.25,92.579,92.501,23.5701]
[1643403188509,0.25,92.579,92.502,2.95669142]
[1643403188911,22.6595,92.601,92.503,0.25]
[1643403189212,23.5336,92.638,92.504,2.95669142]
[1643403189408,23.5336,92.638,92.512,6.0]
[1643403189630,23.5336,92.638,92.52,12.98]
[1643403189831,23.5336,92.638,92.521,47.6715]
[1643403190037,23.5336,92.638,92.531,6.0]
[1643403190531,16.208,92.64,92.532,0.25]
[1643403190730,16.208,92.64,92.532,3.20669142]
[1643403190930,16.208,92.64,92.54,6.0]
[1643403191133,35.58817612,92.639,92.543,6.0]
[1643403191334,35.58817612,92.639,92.544,0.25]
[1643403191531,16.209,92.63,92.55,6.0]
[1643403191931,16.209,92.63,92.551,0.25]
[1643403192734,0.25,92.629,92.551,0.25]
[1643403193331,16.209,92.63,92.551,0.25]
[1643403193939,73.0898,92.739,92.551,0.25]
[1643403193940,66.992,92.68,92.551,3.20669142]
[1643403194134,54.012,92.68,92.561,6.0]
[1643403194333,54.012,92.68,92.57,12.98]
[1643403194533,47.58983113,92.679,92.58,6.0]
[1643403194735,47.58983113,92.679,92.581,24.0942]
[1643403194932,47.58983113,92.679,92.581,24.3442]
[1643403195133,16.202,92.67,92.581,24.3442]
[1643403195333,47.58983113,92.679,92.582,22.9622]
[1643403195334,0.25,92.669,92.582,22.9622]
[1643403195533,39.73466495,92.659,92.582,22.9622]
[1643403195732,39.73466495,92.659,92.58,6.0]
[1643403195935,0.25,92.658,92.58,6.0]
[1643403196235,16.205,92.65,92.581,0.25]
[1643403196436,0.25,92.658,92.581,0.25]
[1643403196634,0.25,92.649,92.581,0.25]
[1643403196834,0.25,92.658,92.581,0.25]
[1643403197246,0.25,92.658,92.572,0.25]
[1643403197443,0.25,92.658,92.571,6.0]
[1643403197842,44.42290467,92.687,92.571,6.0]
[1643403198242,63.65442024,92.687,92.571,6.0]
[1643403198842,63.65442024,92.687,92.572,0.25]
[1643403199047,16.205,92.65,92.572,0.25]
[1643403199243,0.25,92.649,92.572,3.20669142]
[1643403199542,23.5821,92.688,92.582,6.0]
[1643403199942,23.5821,92.688,92.583,6.25]
[1643403200142,41.90794322,92.669,92.593,6.0]
[1643403200343,41.90794322,92.669,92.594,0.25]
[1643403201143,41.90794322,92.669,92.583,6.0]
[1643403201444,0.25,92.668,92.584,0.25]
[1643403202044,16.204,92.66,92.583,6.0]
[1643403202245,0.25,92.659,92.584,0.25]
[1643403203345,0.25,92.668,92.584,0.25]
[1643403203846,41.90794322,92.669,92.584,108.15]
[1643403204046,41.90794322,92.669,92.594,6.0]
[1643403204248,41.90794322,92.669,92.595,0.25]
[1643403204448,54.013,92.68,92.595,0.25]
[1643403204644,54.013,92.68,92.595,6.25]
[1643403204845,54.013,92.68,92.596,6.0]
[1643403205045,16.201,92.67,92.605,6.0]
[1643403205248,0.25,92.669,92.606,0.25]
[1643403205446,35.91236769,92.669,92.606,0.25]
[1643403205648,35.91236769,92.669,92.596,6.0]
[1643403205845,35.91236769,92.669,92.585,24.22]
[1643403206049,35.91236769,92.669,92.55,2.95669142]
[1643403206248,35.91236769,92.669,92.562,24.7094]
[1643403206850,24.4429,92.668,92.563,107.9]
[1643403207046,16.204,92.66,92.563,107.9]
[1643403207249,16.204,92.66,92.564,0.25]
[1643403207446,0.25,92.659,92.564,0.25]
[1643403207847,0.25,92.659,92.562,24.7094]
[1643403208045,38.64518114,92.639,92.562,24.7094]
[1643403208276,0.25,92.638,92.52,15.8896155]
[1643403208449,3.20669142,92.638,92.52,2.9096155]
[1643403208651,10.9148781,92.638,92.504,2.9096155]
[1643403208851,38.08576952,92.637,92.501,77.6256]
[1643403209049,15.56,92.63,92.501,77.6256]
[1643403209456,27.49499142,92.629,92.502,23.3875]
[1643403209654,27.49499142,92.629,92.502,23.6375]
[1643403209853,2.95669142,92.628,92.502,23.6375]
[1643403210054,49.60109353,92.609,92.502,23.6375]
[1643403210456,3.20669142,92.608,92.502,23.6375]
[1643403211255,0.25,92.608,92.502,23.6375]
[1643403211958,16.218,92.58,92.502,23.6375]
[1643403212160,40.40241833,92.579,92.502,23.6375]
[1643403212363,40.65241833,92.579,92.502,23.6375]
[1643403213159,16.22,92.57,92.502,23.6375]
[1643403213360,0.25,92.569,92.502,23.6375]
[1643403213561,54.059,92.6,92.502,23.6375]
[1643403213761,0.25,92.599,92.517,113.7]
[1643403213966,12.98,92.65,92.518,0.25]
[1643403214162,0.25,92.619,92.53,12.98]
[1643403214361,16.21,92.63,92.531,24.0077]
[1643403214565,44.99619572,92.629,92.541,6.0]
[1643403214761,44.99619572,92.629,92.542,0.25]
[1643403215062,16.21,92.63,92.542,0.25]
[1643403215260,54.023,92.66,92.542,0.25]
[1643403215261,54.023,92.66,92.55,6.0]
[1643403215662,0.25,92.659,92.551,0.25]
[1643403215902,16.206,92.65,92.551,0.25]
[1643403216099,36.54190846,92.649,92.551,0.25]
[1643403216304,36.79190846,92.649,92.551,0.25]
[1643403216899,16.208,92.64,92.551,0.25]
[1643403217102,16.208,92.64,92.552,2.95669142]
[1643403217300,16.208,92.64,92.553,0.25]
[1643403217502,16.208,92.64,92.551,0.25]
[1643403218302,0.25,92.639,92.551,0.25]
[1643403218505,0.25,92.639,92.552,2.95669142]
[1643403218904,0.25,92.659,92.562,6.0]
[1643403219204,16.204,92.66,92.563,107.9]
[1643403219404,16.204,92.66,92.563,108.15]
[1643403219635,16.204,92.66,92.573,6.0]
[1643403219830,16.204,92.66,92.574,0.25]
[1643403220641,16.204,92.66,92.574,6.25]
[1643403220835,0.25,92.659,92.574,6.25]
[1643403221533,0.25,92.659,92.58,6.0]
[1643403221734,0.25,92.659,92.56,16.203]
[1643403221735,36.03957696,92.639,92.546,23.5177]
[1643403222135,0.25,92.638,92.547,0.25]
[1643403223233,0.25,92.638,92.556,6.0]
[1643403223634,0.25,92.649,92.557,0.25]
[1643403224043,16.208,92.64,92.557,0.25]
[1643403225343,0.25,92.639,92.557,0.25]
[1643403225939,0.25,92.639,92.547,0.25]
[1643403226841,0.25,92.639,92.547,108.15]
[1643403227056,0.25,92.639,92.548,1.46174486]
[1643403227243,0.25,92.639,92.549,0.25]
[1643403227643,0.25,92.639,92.549,1.71174486]
[1643403228054,49.48572272,92.629,92.549,0.25]
[1643403228343,0.25,92.628,92.553,1.46174486]
[1643403228543,0.25,92.628,92.552,1.46174486]
[1643403228744,0.25,92.628,92.556,6.0]
[1643403229147,0.25,92.628,92.557,0.25]
[1643403230047,0.25,92.628,92.559,6.0]
[1643403230247,0.25,92.628,92.56,0.25]
[1643403230546,0.25,92.628,92.557,0.25]
[1643403231147,0.25,92.628,92.56,6.0]
[1643403231349,0.25,92.628,92.561,0.25]
[1643403231549,0.25,92.628,92.561,6.25]
[1643403232354,0.25,92.628,92.561,0.25]
[1643403232853,0.25,92.629,92.561,0.25]
[1643403233051,0.25,92.629,92.562,6.0]
[1643403233250,0.25,92.629,92.563,0.25]
[1643403234053,0.25,92.629,92.562,6.0]
[1643403234054,16.211,92.62,92.562,6.0]
[1643403234350,54.017,92.67,92.563,0.25]
[1643403234549,54.017,92.67,92.563,49.9107]
[1643403234751,1.4965247,92.669,92.563,49.9107]
[1643403235054,54.017,92.67,92.574,107.9]
[1643403235251,34.80485794,92.672,92.575,26.51190661]
[1643403235450,34.80485794,92.672,92.584,6.0]
[1643403235650,0.25,92.671,92.585,6.0]
[1643403235852,0.25,92.671,92.588,6.0]
[1643403236054,0.25,92.671,92.59,6.0]
[1643403236352,34.80485794,92.672,92.59,6.0]
[1643403236553,19.15869142,92.67,92.58,1.46190661]
[1643403236753,12.98,92.66,92.58,1.46190661]
[1643403236953,54.032,92.65,92.551,1.46190661]
[1643403237152,46.99983504,92.649,92.55,1.71190661]
[1643403237352,46.99983504,92.649,92.55,0.25]
[1643403237655,49.95652646,92.649,92.55,0.25]
[1643403237851,2.95669142,92.648,92.55,0.25]
[1643403238054,16.21,92.64,92.55,0.25]
[1643403238252,16.46,92.64,92.546,1.46190661]
[1643403238452,16.46,92.64,92.543,1.46190661]
[1643403238654,19.41669142,92.64,92.544,1.46190661]
[1643403238853,32.39669142,92.64,92.541,22.5591]
[1643403239052,32.39669142,92.64,92.54,1.46190661]
[1643403239454,107.9,92.639,92.53,1.46190661]
[1643403239755,16.217,92.61,92.524,6.0]
[1643403239953,40.40214306,92.609,92.514,7.46190661]
[1643403240157,40.40214306,92.609,92.509,6.0]
[1643403240353,43.35883448,92.609,92.509,6.0]
[1643403240556,43.35883448,92.609,92.513,6.0]
[1643403240853,40.40214306,92.609,92.513,6.0]
[1643403241061,40.40214306,92.609,92.515,1.46190661]
[1643403241262,40.40214306,92.609,92.513,1.46190661]
[1643403241457,40.40214306,92.609,92.516,1.46190661]
[1643403241757,16.215,92.6,92.516,1.46190661]
[1643403241955,16.215,92.6,92.51,0.25]
[1643403241956,16.215,92.6,92.52,1.46190661]
[1643403242156,16.465,92.6,92.523,1.46190661]
[1643403242560,16.465,92.6,92.533,6.0]
[1643403243157,16.465,92.6,92.534,6.0]
[1643403243357,16.465,92.6,92.533,6.0]
[1643403243860,16.465,92.6,92.521,1.46190661]
[1643403244059,16.465,92.6,92.513,1.46190661]
[1643403244260,16.465,92.6,92.512,1.46190661]
[1643403244459,16.465,92.6,92.518,1.46190661]
[1643403244659,16.465,92.6,92.516,1.46190661]
[1643403244859,16.465,92.6,92.512,107.9]
[1643403245261,16.465,92.6,92.522,6.0]
[1643403245461,16.465,92.6,92.523,107.9]
[1643403245660,16.465,92.6,92.523,113.9]
[1643403245861,16.465,92.6,92.529,6.0]
[1643403246062,16.465,92.6,92.533,6.0]
[1643403246363,16.465,92.6,92.519,1.46190661]